bitfinex/quotes_SOLUSD_20260308
["timestamp","ask_amount","ask_price","bid_price","bid_amount"]
[1772990765480,0.49879746,81.561,81.505,0.47378683]
[1772990766981,0.49879746,81.559,81.508,0.47378683]
[1772990768672,165.6,81.886,81.569,0.28028114]
[1772990768872,0.49879746,81.611,81.571,0.08028114]
[1772990769182,0.49879746,81.609,81.571,0.08028114]
[1772990769688,0.49879746,81.609,81.556,0.08028114]
[1772990770289,0.49879746,81.607,81.558,0.08028114]
[1772990771468,0.49879746,81.607,81.556,42.91529746]
[1772990771469,0.49879746,81.599,81.556,12.26151356]
[1772990771669,0.49879746,81.589,81.556,12.26151356]
[1772990772082,0.49879746,81.589,81.536,0.08028114]
[1772990772083,0.49879746,81.577,81.529,0.08028114]
[1772990772388,0.49879746,81.569,81.529,0.08028114]
[1772990773784,0.49879746,81.569,81.514,0.08028114]
[1772990774084,0.49879746,81.559,81.514,0.08028114]
[1772990774286,0.49879746,81.557,81.515,0.36460428]
[1772990774475,0.49879746,81.557,81.516,0.08028114]
[1772990776894,0.49879746,81.557,81.518,0.08028114]
[1772990777980,12.2613973,81.557,81.518,0.08028114]
[1772990778181,0.49879746,81.556,81.518,0.08028114]
[1772990779286,0.49879746,81.556,81.52,0.08028114]
[1772990781687,0.49879746,81.556,81.52,42.93424926]
[1772990781989,0.49879746,81.556,81.522,0.08028114]
[1772990782692,0.49879746,81.569,81.522,0.08028114]
[1772990784296,0.49879746,81.567,81.523,0.08028114]
[1772990785881,12.26001029,81.566,81.523,0.08028114]
[1772990786103,0.49879746,81.565,81.523,0.08028114]
[1772990787105,0.49879746,81.559,81.522,30.66656853]
[1772990787398,0.49879746,81.549,81.514,12.26783129]
[1772990787585,0.49879746,81.549,81.514,42.93740952]
[1772990788401,0.49879746,81.547,81.514,42.93740952]
[1772990789285,0.49879746,81.547,81.514,12.26783129]
[1772990790884,0.49879746,81.545,81.514,12.26783129]
[1772990793306,0.45985943,81.543,81.514,12.26783129]
[1772990796194,0.45985943,81.541,81.514,12.26783129]
[1772990798489,0.45985943,81.541,81.515,0.08028114]
[1772990799213,0.45985943,81.541,81.514,12.26783129]
[1772990799815,0.45985943,81.54,81.514,12.26783129]
[1772990800018,12.26256606,81.549,81.515,0.47864253]
[1772990801993,0.45840572,81.546,81.516,12.2675303]
[1772990802694,0.45840572,81.546,81.517,0.47864253]
[1772990805209,12.26282259,81.548,81.525,0.47864253]
[1772990806585,12.26061155,81.562,81.525,0.47864253]
[1772990807286,0.45840572,81.559,81.527,0.47864253]
[1772990810210,0.45840572,81.559,81.529,0.47864253]
[1772990810388,0.45840572,81.557,81.529,0.47864253]
[1772990812910,0.45840572,81.576,81.532,0.47864253]
[1772990815710,0.45840572,81.574,81.534,0.47864253]
[1772990817917,0.45840572,81.585,81.537,0.47864253]
[1772990819197,0.45840572,81.59,81.54,0.47864253]
[1772990820519,0.45840572,81.605,81.545,0.47864253]
[1772990820702,0.45840572,81.604,81.546,0.47864253]
[1772990821113,0.45840572,81.604,81.549,0.47864253]
[1772990821516,0.45840572,81.604,81.552,0.47864253]
[1772990821718,0.45840572,81.616,81.554,0.47864253]
[1772990821913,0.45840572,81.616,81.557,0.47864253]
[1772990822222,0.45840572,81.616,81.56,0.47864253]
[1772990822421,0.45840572,81.616,81.563,0.47864253]
[1772990822594,0.45840572,81.616,81.568,0.47864253]
[1772990822921,0.45840572,81.616,81.569,0.45403501]
[1772990824497,4.80981109,81.64,81.569,0.45403501]
[1772990824706,0.47782234,81.648,81.575,0.45403501]
[1772990824911,0.47782234,81.648,81.578,0.45403501]
[1772990825121,0.47782234,81.639,81.578,0.45403501]
[1772990825505,0.47782234,81.639,81.581,0.47999342]
[1772990826004,0.47782234,81.639,81.584,0.47999342]
[1772990826401,0.47782234,81.639,81.586,0.47999342]
[1772990826813,0.47782234,81.639,81.589,0.47999342]
[1772990828726,0.49046571,81.637,81.591,0.47999342]
[1772990828899,0.49046571,81.637,81.592,0.47999342]
[1772990829517,0.49046571,81.637,81.594,0.47999342]
[1772990829922,0.49046571,81.637,81.596,0.47999342]
[1772990830310,0.49046571,81.637,81.598,0.47999342]
[1772990830712,0.49046571,81.635,81.603,0.47999342]
[1772990831016,0.49046571,81.635,81.589,0.47999342]
[1772990831229,0.49046571,81.629,81.589,0.47999342]
[1772990831929,0.49046571,81.629,81.593,0.47999342]
[1772990832930,42.87324219,81.636,81.595,0.47999342]
[1772990832931,0.49046571,81.635,81.595,0.47999342]
[1772990835111,0.49046571,81.635,81.584,0.28432314]
[1772990835112,12.24979787,81.634,81.596,42.89425952]
[1772990835321,0.49046571,81.633,81.597,0.47999342]
[1772990838231,0.49046571,81.631,81.599,0.47999342]
[1772990839115,0.49046571,81.631,81.598,12.25520233]
[1772990840321,0.49046571,81.629,81.595,0.47999342]
[1772990843234,0.49046571,81.629,81.597,0.47999342]
[1772990844220,0.49046571,81.627,81.597,0.47999342]
[1772990844419,0.49046571,81.627,81.582,0.47999342]
[1772990845941,0.49046571,81.625,81.584,0.47999342]
[1772990847928,0.49046571,81.625,81.559,3.69383402]
[1772990847929,0.49046571,81.619,81.585,12.25715511]
[1772990848636,0.49046571,81.619,81.58,12.25780365]
[1772990849417,0.49046571,81.619,81.58,12.73779707]
[1772990850121,4.80981109,81.62,81.58,12.73779707]
[1772990850122,0.49046571,81.617,81.58,12.73779707]
[1772990850542,0.49046571,81.617,81.581,0.47999342]
[1772990850737,0.49046571,81.609,81.565,0.47999342]
[1772990852148,0.49046571,81.607,81.567,0.47999342]
[1772990854846,0.48681078,81.605,81.568,12.74447066]
[1772990855235,0.48681078,81.605,81.569,0.48476097]
[1772990856446,0.48681078,81.599,81.569,0.48476097]
[1772990856746,0.48681078,81.597,81.569,0.48476097]
[1772990857628,0.48681078,81.597,81.57,12.25940909]
[1772990857831,0.48681078,81.597,81.571,0.48476097]
[1772990859438,0.48681078,81.597,81.573,0.48476097]
[1772990861642,0.28432314,81.63,81.54,1.22639195]
[1772990861643,12.25299063,81.613,81.574,0.48476097]
[1772990862870,12.25299063,81.613,81.576,0.48476097]
[1772990862871,30.63237474,81.613,81.576,0.48476097]
[1772990863146,4.80981109,81.61,81.576,0.48476097]
[1772990863642,0.48681078,81.609,81.576,0.48476097]
[1772990865239,0.48681078,81.607,81.578,0.48476097]
[1772990868249,0.48681078,81.605,81.578,0.48476097]
[1772990870370,0.48681078,81.603,81.58,0.48476097]
[1772990872858,12.25430125,81.604,81.582,0.48476097]
[1772990873157,0.48681078,81.603,81.582,0.48476097]
[1772990874348,12.2546016,81.602,81.582,0.48476097]
[1772990874550,12.2546016,81.602,81.584,0.48476097]
[1772990877256,0.48681078,81.605,81.584,0.48476097]
[1772990877652,12.74019591,81.611,81.586,0.48476097]
[1772990878164,0.48681078,81.61,81.586,0.48476097]
[1772990882766,12.73846036,81.615,81.588,0.48050501]
[1772990883146,0.48577546,81.614,81.588,0.48050501]
[1772990886253,0.49379226,81.612,81.582,0.4738548]
[1772990887155,0.49379226,81.612,81.585,12.25703989]
[1772990887666,0.49379226,81.612,81.585,12.73089469]
[1772990888170,0.49379226,81.619,81.586,0.4738548]
[1772990889274,0.49379226,81.618,81.588,0.4738548]
[1772990892265,0.49379226,81.616,81.59,0.4738548]
[1772990893570,12.74555705,81.621,81.59,0.4738548]
[1772990894270,12.25204915,81.619,81.592,0.4738548]
[1772990894768,0.49379226,81.609,81.582,0.4738548]
[1772990894954,0.49379226,81.609,81.583,0.4738548]
[1772990896554,0.49379226,81.607,81.585,0.4738548]
[1772990897674,30.63012288,81.619,81.585,0.4738548]
[1772990897977,0.49379226,81.628,81.585,0.4738548]
[1772990898862,0.49379226,81.627,81.587,0.4738548]
[1772990901283,0.49379226,81.625,81.589,0.4738548]
[1772990902882,12.25099845,81.626,81.589,0.4738548]
[1772990903279,0.49379226,81.625,81.589,0.4738548]
[1772990903574,0.49379226,81.623,81.591,0.4738548]
[1772990904656,0.49379226,81.621,81.593,0.4738548]
[1772990906272,0.49379226,81.621,81.595,0.4738548]
[1772990906781,12.25159883,81.622,81.595,0.4738548]
[1772990908068,12.25159883,81.622,81.565,61.30075277]
[1772990908069,0.49379226,81.609,81.575,0.4738548]
[1772990908271,0.49379226,81.607,81.575,0.4738548]
[1772990908974,0.49379226,81.607,81.576,12.2585074]
[1772990909171,0.49379226,81.607,81.577,0.4738548]
[1772990910986,0.49379226,81.605,81.577,0.4738548]
[1772990913280,12.25430125,81.604,81.577,0.4738548]
[1772990913482,0.49097584,81.603,81.577,0.4738548]
[1772990916369,0.49097584,81.601,81.577,0.4738548]
[1772990917375,0.49097584,81.601,81.579,0.49124155]
[1772990919397,12.25490196,81.6,81.579,0.49124155]
[1772990921177,0.49097584,81.6,81.579,0.49124155]
[1772990922393,12.74602798,81.599,81.579,0.49124155]
[1772990923392,0.49097584,81.589,81.552,0.49124155]
[1772990923593,0.49097584,81.579,81.549,0.49124155]
[1772990923994,0.49097584,81.589,81.549,0.49124155]
[1772990924494,0.49097584,81.587,81.551,0.49124155]
[1772990926998,0.49097584,81.585,81.553,0.49124155]
[1772990928390,0.49097584,81.583,81.555,0.49124155]
[1772990929802,0.49097584,81.579,81.555,0.49124155]
[1772990929982,0.49097584,81.583,81.555,0.49124155]
[1772990930702,0.49097584,81.581,81.557,0.49124155]
[1772990937514,0.49097584,81.579,81.557,0.49124155]
[1772990937937,0.49097584,81.569,81.535,0.49124155]
[1772990938103,0.49097584,81.559,81.535,0.49124155]
[1772990938311,0.49097584,81.57,81.535,0.49124155]
[1772990939400,12.74834586,81.584,81.538,0.49124155]
[1772990939619,0.49097584,81.583,81.539,0.49124155]
[1772990940802,0.49097584,81.581,81.542,0.49124155]
[1772990941518,12.25760584,81.582,81.542,0.49124155]
[1772990942018,12.25760584,81.582,81.544,0.49124155]
[1772990942319,12.74858168,81.582,81.544,0.49124155]
[1772990943415,0.46584859,81.581,81.546,0.48744238]
[1772990947823,0.47738451,81.588,81.548,0.48839098]
[1772990948016,0.47738451,81.593,81.549,0.48839098]
[1772990948810,4.81052238,81.58,81.549,0.48839098]
[1772990949123,0.47738451,81.579,81.549,0.48839098]
[1772990950118,0.47738451,81.577,81.549,0.48839098]
[1772990951228,0.47738451,81.585,81.551,0.48839098]
[1772990952531,0.47738451,81.585,81.55,42.91845492]
[1772990952532,12.25730535,81.584,81.553,0.48839098]
[1772990954216,0.47738451,81.585,81.553,0.48839098]
[1772990954416,0.47738451,81.59,81.555,0.48839098]
[1772990955117,0.47738451,81.59,81.557,0.48839098]
[1772990955314,0.47738451,81.59,81.559,0.48839098]
[1772990955518,0.47738451,81.59,81.561,0.48839098]
[1772990955737,0.47738451,81.59,81.562,0.48839098]
[1772990957932,0.47738451,81.588,81.562,0.48839098]
[1772990959530,0.47738451,81.586,81.562,0.48839098]
[1772990960536,0.47738451,81.586,81.564,0.48839098]
[1772990961041,12.25685464,81.587,81.564,0.48839098]
[1772990962827,12.25685464,81.587,81.566,0.48839098]
[1772990966440,0.47738451,81.588,81.566,0.48839098]
[1772990967039,0.47738451,81.588,81.568,0.48839098]
[1772990969439,12.25627285,81.591,81.57,0.48839098]
[1772990970642,0.47738451,81.59,81.57,0.48839098]
[1772990973339,12.25655419,81.589,81.57,0.48839098]
[1772990973535,0.45591006,81.588,81.557,0.49785842]
[1772990974643,0.45591006,81.586,81.56,0.49785842]
[1772990977122,0.45591006,81.6,81.562,0.49785842]
[1772990977345,0.45591006,81.599,81.562,0.49785842]
[1772990978849,0.45591006,81.597,81.564,0.49785842]
[1772990981530,0.45591006,81.595,81.566,0.49785842]
[1772990984736,0.45591006,81.595,81.556,0.47402753]
[1772990984737,0.45591006,81.589,81.556,0.47402753]
[1772990984945,0.45591006,81.579,81.556,0.47402753]
[1772990987546,0.45591006,81.577,81.556,0.97188595]
[1772990988945,0.45591006,81.577,81.556,0.47402753]
[1772990989149,0.45591006,81.569,81.542,0.49785842]
[1772990989449,0.45591006,81.567,81.542,0.49785842]
[1772990990646,0.45591006,81.567,81.544,0.49785842]
[1772990991648,0.45591006,81.567,81.546,0.49785842]
[1772990993934,12.25970969,81.568,81.548,0.49785842]
[1772990996353,0.45591006,81.569,81.548,0.49785842]
[1772990997337,12.71550036,81.569,81.549,12.26256606]
[1772990997536,12.71550036,81.569,81.55,0.49785842]
[1772990999042,0.45591006,81.568,81.55,0.49785842]
[1772991000755,0.45591006,81.566,81.545,0.44279393]
[1772991001052,12.25985999,81.567,81.532,12.76286082]
[1772991001053,0.45591006,81.559,81.532,12.76286082]
[1772991001257,0.45591006,81.559,81.533,0.49785842]
[1772991004451,0.071849,81.557,81.536,0.48281582]
[1772991007140,0.071849,81.557,81.535,12.7592196]
[1772991007457,0.071849,81.561,81.536,0.49454799]
[1772991008258,4.81070181,81.57,81.536,0.49454799]
[1772991008259,0.071849,81.569,81.536,0.49454799]
[1772991009466,0.071849,81.568,81.538,0.49454799]
[1772991014265,0.071849,81.568,81.54,0.49454799]
[1772991016271,0.071849,81.568,81.542,0.49454799]
[1772991020574,49.0,81.583,81.544,0.49454799]
[1772991020874,0.071849,81.579,81.544,0.49454799]
[1772991021076,0.071849,81.569,81.539,0.49454799]
[1772991021265,0.071849,81.549,81.512,0.49454799]
[1772991021571,0.071849,81.539,81.512,0.49454799]
[1772991022672,12.33591895,81.539,81.513,12.26798179]
[1772991022862,12.33591895,81.539,81.514,0.49454799]
[1772991023880,12.33591895,81.539,81.516,0.49454799]
[1772991024677,0.071849,81.549,81.518,0.49454799]
[1772991024872,0.071849,81.549,81.52,0.49454799]
[1772991025778,0.071849,81.555,81.52,0.49454799]
[1772991027079,0.071849,81.555,81.522,0.49454799]
[1772991027466,0.071849,81.549,81.522,0.49454799]
[1772991028286,0.071849,81.549,81.521,11.0700359]
[1772991030077,0.071849,81.549,81.519,0.41125401]
[1772991030078,0.071849,81.549,81.524,0.49454799]
[1772991033092,42.91371889,81.559,81.526,0.45788695]
[1772991033393,43.40778218,81.559,81.526,0.45788695]
[1772991033598,0.49406329,81.558,81.526,0.45788695]
[1772991033885,0.49406329,81.563,81.526,0.45788695]
[1772991034087,0.49406329,81.578,81.527,0.45788695]
[1772991035171,0.49406329,81.576,81.53,0.45788695]
[1772991036778,0.49406329,81.574,81.533,0.45788695]
[1772991039374,0.49406329,81.572,81.536,0.45788695]
[1772991039592,0.49406329,81.572,81.538,0.45788695]
[1772991039784,0.49406329,81.572,81.54,0.45788695]
[1772991039988,0.49406329,81.572,81.542,0.45788695]
[1772991040190,0.49406329,81.572,81.544,0.45788695]
[1772991040392,0.49406329,81.572,81.545,0.45788695]
[1772991042682,12.25844393,81.577,81.547,0.45788695]
[1772991043017,0.49406329,81.585,81.547,0.45788695]
[1772991044286,12.25655419,81.589,81.547,0.45788695]
[1772991044990,0.49406329,81.592,81.55,0.45788695]
[1772991046391,0.49406329,81.589,81.55,0.45788695]
[1772991047406,0.49406329,81.587,81.552,0.45788695]
[1772991048006,0.49406329,81.587,81.553,0.45788695]
[1772991048199,12.25670441,81.588,81.553,0.45788695]
[1772991048400,0.49406329,81.598,81.555,0.45788695]
[1772991048703,12.25505214,81.599,81.557,0.45788695]
[1772991048903,0.49406329,81.598,81.559,0.45788695]
[1772991049101,0.49406329,81.589,81.559,0.45788695]
[1772991049288,4.81070181,81.59,81.559,12.71880442]
[1772991049289,0.49406329,81.587,81.559,12.71880442]
[1772991049703,0.49406329,81.587,81.56,0.45788695]
[1772991050394,0.49406329,81.587,81.563,0.45788695]
[1772991054005,12.25505214,81.599,81.565,0.45788695]
[1772991054805,0.49406329,81.598,81.565,0.45788695]
[1772991056707,0.49406329,81.596,81.567,0.45788695]
[1772991059606,12.25565291,81.595,81.568,12.25970969]
[1772991059789,12.7497162,81.595,81.569,0.45788695]
[1772991060602,0.49406329,81.594,81.569,0.45788695]
[1772991060997,30.63422773,81.609,81.569,0.45788695]
[1772991060998,0.49406329,81.607,81.569,0.45788695]
[1772991061187,0.49406329,81.624,81.57,0.45788695]
[1772991061381,4.80729648,81.62,81.57,0.45788695]
[1772991061695,0.49406329,81.617,81.573,0.45788695]
[1772991062695,0.45743867,81.609,81.571,12.2592588]
[1772991062885,0.45743867,81.609,81.571,12.74751084]
[1772991063086,0.45743867,81.609,81.572,0.48825204]
[1772991063702,0.45743867,81.607,81.574,0.48825204]
[1772991065788,12.74088496,81.606,81.576,0.48749571]
[1772991065989,12.25400093,81.606,81.576,0.48749571]
[1772991066192,0.48688403,81.628,81.577,0.48749571]
[1772991066409,0.48688403,81.627,81.577,0.48749571]
[1772991067593,0.48688403,81.625,81.58,0.48749571]
[1772991069914,0.48688403,81.643,81.585,0.77181885]
[1772991070097,12.24769743,81.648,81.587,0.48749571]
[1772991070098,0.48688403,81.647,81.587,0.48749571]
[1772991070305,0.48688403,81.647,81.589,0.48749571]
[1772991070502,0.48688403,81.647,81.591,0.48749571]
[1772991070711,0.48688403,81.647,81.593,0.48749571]
[1772991070898,0.48688403,81.647,81.595,0.48749571]
[1772991071213,0.48688403,81.619,81.596,0.41007617]
[1772991072117,0.48688403,81.617,81.596,0.41007617]
[1772991072411,12.73804514,81.625,81.598,0.48749571]
[1772991072615,12.25116111,81.625,81.6,0.48749571]
[1772991072794,12.25116111,81.625,81.602,0.48749571]
[1772991072989,12.25116111,81.625,81.603,0.48749571]
[1772991073194,12.7373553,81.63,81.603,0.48749571]
[1772991075512,12.24902516,81.64,81.605,0.48749571]
[1772991075713,0.48688403,81.639,81.605,0.48749571]
[1772991077022,0.48688403,81.637,81.607,0.48749571]
[1772991079208,0.48688403,81.637,81.608,12.25370061]
[1772991079514,0.48688403,81.637,81.609,0.48749571]
[1772991081618,0.48688403,81.637,81.608,42.88795215]
[1772991081619,0.48688403,81.637,81.611,0.48749571]
[1772991082907,12.73443145,81.649,81.613,0.48749571]
[1772991083325,0.48688403,81.649,81.613,0.48749571]
[1772991083519,12.73443145,81.649,81.613,0.48749571]
[1772991083904,0.48688403,81.648,81.613,0.48749571]
[1772991084303,0.48688403,81.639,81.602,0.48749571]
[1772991084622,0.48688403,81.629,81.602,0.48749571]
[1772991085620,0.48688403,81.627,81.603,12.25445142]
[1772991086409,0.48688403,81.619,81.588,0.48749571]
[1772991087532,0.48688403,81.617,81.591,0.48749571]
[1772991090523,0.48688403,81.615,81.592,12.74359924]
[1772991090913,0.48688403,81.615,81.593,0.48749571]
[1772991091724,0.48688403,81.615,81.594,12.25580312]
[1772991092434,0.48688403,81.615,81.595,0.48749571]
[1772991103142,0.45997868,81.613,81.595,0.48749571]
[1772991103726,0.45997868,81.613,81.581,0.48390671]
[1772991103928,0.45997868,81.609,81.582,0.48390671]
[1772991104632,0.45997868,81.607,81.584,0.48390671]
[1772991107948,0.45997868,81.607,81.58,0.4109465]
[1772991107949,0.45997868,81.599,81.58,0.4109465]
[1772991108849,0.45997868,81.605,81.582,0.48390671]
[1772991110447,0.45997868,81.619,81.584,0.48390671]
[1772991111041,0.45997868,81.625,81.584,0.48390671]
[1772991113750,12.25129863,81.624,81.585,42.90004289]
[1772991113948,0.45997868,81.623,81.586,0.48390671]
[1772991114142,0.45997868,81.619,81.586,0.48390671]
[1772991117353,0.45997868,81.617,81.588,0.48390671]
[1772991118454,0.45997868,81.615,81.59,0.48390671]
[1772991120660,0.45997868,81.615,81.585,30.64288778]
[1772991120661,0.45997868,81.615,81.592,0.48390671]
[1772991122942,12.25179244,81.621,81.594,0.48482772]
[1772991123143,0.48866698,81.629,81.594,0.48482772]
[1772991123962,12.73961265,81.627,81.594,0.48482772]
[1772991124661,12.25094567,81.627,81.596,0.48482772]
[1772991125768,0.46637745,81.627,81.598,0.4553683]
[1772991127781,12.24949777,81.636,81.599,12.25505214]
[1772991128073,12.24949777,81.636,81.6,0.4553683]
[1772991128469,12.71587522,81.636,81.6,0.4553683]
[1772991128668,0.46637745,81.643,81.601,0.4553683]
[1772991131690,0.46637745,81.641,81.603,0.4553683]
[1772991134974,0.46637745,81.641,81.589,0.28432314]
[1772991134975,0.2,81.65,81.606,0.4553683]
[1772991135157,12.24604758,81.659,81.608,0.4553683]
[1772991135760,0.46637745,81.658,81.608,0.4553683]
[1772991135965,0.46637745,81.658,81.611,0.4553683]
[1772991136470,0.46637745,81.658,81.613,0.4553683]
[1772991136673,0.46637745,81.658,81.614,0.4553683]
[1772991137552,0.46637745,81.658,81.617,0.4553683]
[1772991141373,0.46637745,81.658,81.62,0.4553683]
[1772991142170,0.2,81.66,81.62,0.4553683]
[1772991142564,0.46637745,81.659,81.623,0.4553683]
[1772991147501,0.46637745,81.659,81.625,0.73969144]
[1772991147787,0.46637745,81.659,81.626,0.4553683]
[1772991150477,1e-08,81.66,81.629,0.4553683]
[1772991150678,0.2,81.67,81.629,0.4553683]
[1772991151383,0.46637745,81.669,81.629,0.4553683]
[1772991153585,0.46637745,81.669,81.632,0.4847435]
[1772991154385,0.46637745,81.669,81.634,0.4847435]
[1772991154587,0.46637745,81.669,81.636,0.4847435]
[1772991154787,0.46637745,81.669,81.638,0.4847435]
[1772991154987,0.46637745,81.669,81.64,0.4847435]
[1772991155289,0.46637745,81.669,81.642,0.4847435]
[1772991155600,0.46637745,81.669,81.644,0.4847435]
[1772991155769,0.46637745,81.669,81.647,0.4847435]
[1772991155969,0.46637745,81.669,81.649,0.4847435]
[1772991156169,0.46637745,81.669,81.651,0.4847435]
[1772991157286,0.46637745,81.669,81.652,12.24709743]
[1772991158191,0.45066777,81.667,81.65,0.21059419]
[1772991158378,0.45066777,81.667,81.632,0.28432314]
[1772991158686,0.45066777,81.667,81.633,0.4847435]
[1772991159478,0.1558028,81.665,81.635,0.4847435]
[1772991160788,0.1558028,81.665,81.634,12.24979787]
[1772991161093,0.1558028,81.659,81.634,12.24979787]
[1772991161885,0.1558028,81.658,81.626,0.4847435]
[1772991162487,4.80538229,81.65,81.625,12.25114854]
[1772991162794,0.1558028,81.649,81.625,12.25114854]
[1772991164196,0.1558028,81.648,81.625,12.25114854]
[1772991168993,0.1558028,81.648,81.626,0.4847435]
[1772991171195,0.1558028,81.648,81.624,0.39312044]
[1772991171196,0.1558028,81.648,81.628,0.4847435]
[1772991177702,0.1558028,81.648,81.624,0.39312044]
[1772991178605,0.1558028,81.648,81.625,12.73589204]
[1772991179407,0.1558028,81.648,81.626,0.4847435]
[1772991180107,0.1558028,81.639,81.624,0.39312044]
[1772991180418,4.80538229,81.63,81.598,0.5]
[1772991180591,4.80538229,81.65,81.598,0.5]
[1772991181285,4.80538229,81.64,81.598,0.5]
[1772991183394,12.24904763,81.639,81.6,0.5]
[1772991184114,12.24904763,81.639,81.602,0.5]
[1772991184413,12.24904763,81.639,81.604,0.5]
[1772991186593,12.24904763,81.639,81.606,0.5]
[1772991186815,12.24904763,81.639,81.606,0.37900893]
[1772991187017,12.24904763,81.639,81.607,0.5]
[1772991189513,12.24904763,81.639,81.608,12.25370061]
[1772991189718,12.24904763,81.639,81.609,0.5]
[1772991195505,12.24904763,81.639,81.61,12.25340031]
[1772991195813,12.24904763,81.639,81.611,0.5]
[1772991198626,12.24904763,81.639,81.613,0.5]
[1772991200111,42.87166672,81.639,81.606,0.37900893]
[1772991200312,4.80332212,81.63,81.606,0.37900893]
[1772991200522,4.80332212,81.63,81.606,0.87900893]
[1772991200718,12.25054821,81.629,81.606,0.87900893]
[1772991201406,12.25054821,81.629,81.593,0.5]
[1772991201726,4.80332212,81.62,81.593,0.5]
[1772991202931,12.25204915,81.619,81.595,0.5]
[1772991205124,12.25204915,81.619,81.597,0.5]
[1772991206746,4.80332212,81.61,81.583,0.36733898]
[1772991206915,4.80332212,81.59,81.567,0.5]
[1772991207636,4.80332212,81.59,81.562,0.5]
[1772991208331,4.80332212,81.61,81.563,0.5]
[1772991208736,12.25355046,81.609,81.565,0.5]
[1772991210129,4.80332212,81.6,81.565,0.5]
[1772991210925,12.25505214,81.599,81.567,0.5]
[1772991212618,4.80332212,81.6,81.567,0.5]
[1772991212936,12.25505214,81.599,81.567,0.5]
[1772991213521,12.25505214,81.599,81.568,12.25970969]
[1772991213719,12.25505214,81.599,81.569,0.5]
[1772991216643,12.25505214,81.599,81.571,0.5]
[1772991218724,4.80332212,81.59,81.565,0.5]
[1772991219434,4.80332212,81.59,81.561,0.5]
[1772991220743,12.25655419,81.589,81.562,12.26061155]
[1772991222228,12.25655419,81.589,81.534,61.32364186]
[1772991222229,4.80332212,81.57,81.542,0.5]
[1772991222536,4.80332212,81.56,81.53,0.5]
[1772991222838,12.26106254,81.559,81.53,0.5]
[1772991223168,4.80332212,81.55,81.52,0.1]
[1772991223344,4.80332212,81.54,81.52,0.6]
[1772991223644,4.80332212,81.55,81.52,0.6]
[1772991224627,12.26256606,81.549,81.52,0.6]
[1772991225638,4.80332212,81.54,81.52,0.6]
[1772991226732,17.06729133,81.54,81.52,0.6]
[1772991227836,12.26396921,81.54,81.52,0.6]
[1772991228351,12.26256606,81.549,81.522,0.5]
[1772991231627,12.26256606,81.549,81.52,0.1]
[1772991232646,12.26256606,81.549,81.52,0.6]
[1772991233943,12.26106254,81.559,81.522,0.5]
[1772991236455,12.26106254,81.559,81.524,0.5]
[1772991240359,12.26106254,81.559,81.526,0.5]
[1772991241447,12.25955939,81.569,81.527,0.5]
[1772991242644,12.25955939,81.569,81.53,0.5]
[1772991245465,4.81140654,81.55,81.525,0.5]
[1772991247658,0.05540297,81.571,81.52,12.36680451]
[1772991247659,4.81140654,81.54,81.52,0.6]
[1772991249148,12.26256606,81.549,81.52,0.6]
[1772991249566,12.26256606,81.549,81.52,12.86678926]
[1772991249765,12.26256606,81.549,81.521,0.5]
[1772991251060,42.91898122,81.549,81.521,0.5]
[1772991251364,4.81140654,81.54,81.52,0.1]
[1772991251551,4.81140654,81.54,81.521,0.5]
[1772991251863,12.26406995,81.539,81.521,0.5]
[1772991253197,12.26406995,81.539,81.52,0.1]
[1772991253470,42.92424483,81.539,81.52,0.1]
[1772991255469,42.92424483,81.539,81.5,0.38432314]
[1772991255470,4.81140654,81.53,81.5,0.1]
[1772991255649,4.81140654,81.52,81.5,0.1]
[1772991255970,4.81140654,81.52,81.441,4.82477569]
[1772991255971,4.81140654,81.51,81.497,1e-08]
[1772991258056,42.94004342,81.509,81.497,1e-08]
[1772991259069,42.94004342,81.509,81.465,1e-08]
[1772991259070,3.69383402,81.506,81.465,1e-08]
[1772991259267,3.69383402,81.506,81.358,307.5]
[1772991259268,0.47668837,81.479,81.362,30.72687495]
[1772991259450,4.81140654,81.46,81.383,3.69383402]
[1772991259645,4.81140654,81.46,81.388,4.82477569]
[1772991259845,0.47668837,81.459,81.41,0.1]
[1772991260150,4.81140654,81.44,81.41,0.1]
[1772991260356,0.47668837,81.429,81.41,0.1]
[1772991260665,0.47668837,81.419,81.362,43.01762493]
[1772991261170,12.28229629,81.418,81.366,43.01551016]
[1772991261360,4.81140654,81.41,81.368,0.46132632]
[1772991261678,4.81140654,81.43,81.368,0.46132632]
[1772991261967,0.47668837,81.429,81.368,0.46132632]
[1772991262148,12.27988309,81.434,81.37,0.46132632]
[1772991262346,12.27988309,81.434,81.371,0.46132632]
[1772991262574,12.27913768,81.439,81.371,0.46132632]
[1772991262876,0.47668837,81.419,81.373,0.46132632]
[1772991263250,0.47668837,81.409,81.376,0.46132632]
[1772991263656,4.81140654,81.41,81.36,0.46132632]
[1772991263657,5.28809491,81.41,81.36,0.46132632]
[1772991263857,0.47668837,81.399,81.36,0.46132632]
[1772991264769,12.28229629,81.418,81.36,0.46132632]
[1772991265147,12.28229629,81.418,81.363,0.46132632]